[Event "Ebbe Cup 48"]
[Site "Goteborgs Schackcentrum, Vegatan 20, Gothenburg, Sweden"]
[Date "2025.02.15"]
[Round "3.2"]
[White "Andren, Patrik"]
[Black "Green, David"]
[Result "1-0"]
[TimeControl "90 minutes + 30 seconds per move from move one"]
[WhiteFideId "1767135"]
[BlackFideId "1769332"]
[WhiteElo "1959"]
[BlackElo "1892"]

1. e4 {[%clk 01:29:50]} {[%emt 00:01:10]} c5 {[%clk 01:29:53]} {[%emt
00:01:07]} 2. Nc3 {[%clk 01:29:28]} {[%emt 00:00:51]} Nc6 {[%clk 01:29:49]}
{[%emt 00:00:34]} 3. Bb5 {[%clk 01:27:04]} {[%emt 00:02:55]} Nd4 {[%clk
01:26:36]} {[%emt 00:03:43]} 4. Bc4 {[%clk 01:27:24]} {[%emt 00:00:10]} g6
{[%clk 01:20:45]} {[%emt 00:06:21]} 5. Nge2 {[%clk 01:24:11]} {[%emt 00:03:43]}
Bg7 {[%clk 01:15:19]} {[%emt 00:05:55]} 6. O-O {[%clk 01:22:39]} {[%emt
00:02:02]} d6 {[%clk 01:07:53]} {[%emt 00:07:57]} 7. d3 {[%clk 01:19:49]}
{[%emt 00:03:19]} Bg4 {[%clk 01:03:22]} {[%emt 00:05:01]} 8. f3 {[%clk
01:18:03]} {[%emt 00:02:16]} Bd7 {[%clk 00:56:29]} {[%emt 00:07:22]} 9. Nxd4
{[%clk 01:17:16]} {[%emt 00:01:18]} Bxd4+ {[%clk 00:55:50]} {[%emt 00:01:10]}
10. Kh1 {[%clk 01:16:48]} {[%emt 00:00:58]} Bg7 {[%clk 00:43:43]} {[%emt
00:12:37]} 11. f4 {[%clk 01:14:09]} {[%emt 00:03:09]} e6 {[%clk 00:36:33]}
{[%emt 00:07:39]} 12. Qe1 {[%clk 01:09:31]} {[%emt 00:05:08]} a6 {[%clk
00:26:00]} {[%emt 00:11:04]} 13. f5 {[%clk 01:05:10]} {[%emt 00:04:50]} Nf6
{[%clk 00:21:10]} {[%emt 00:05:20]} 14. Qg3 {[%clk 00:56:44]} {[%emt 00:08:56]}
Qc7 {[%clk 00:15:58]} {[%emt 00:05:42]} 15. Bg5 {[%clk 00:53:28]} {[%emt
00:03:45]} O-O {[%clk 00:13:24]} {[%emt 00:03:05]} 16. Qh4 {[%clk 00:50:15]}
{[%emt 00:03:44]} Qd8 {[%clk 00:10:06]} {[%emt 00:03:47]} 17. Rf3 {[%clk
00:47:12]} {[%emt 00:03:32]} b5 {[%clk 00:05:46]} {[%emt 00:04:51]} 18. Bb3
{[%clk 00:46:17]} {[%emt 00:01:26]} b4 {[%clk 00:01:57]} {[%emt 00:04:18]} 19.
e5 {[%clk 00:42:09]} {[%emt 00:04:38]} bxc3 {[%clk 00:00:34]} {[%emt 00:01:53]}
20. exf6 {[%clk 00:42:27]} {[%emt 00:00:11]} cxb2 {[%clk 00:00:32]} {[%emt
00:00:33]} 21. Rb1 {[%clk 00:42:21]} {[%emt 00:00:36]} Bh8 {[%clk 00:00:32]}
{[%emt 00:00:30]} 22. Qh6 {[%clk 00:36:30]} {[%emt 00:06:20]} Bxf6 {[%clk
00:00:34]} {[%emt 00:00:30]} 23. Rh3 {[%clk 00:36:39]} {[%emt 00:00:20]} Re8
{[%clk 00:00:40]} {[%emt 00:00:25]} 24. Qxh7+ {[%clk 00:36:14]} {[%emt
00:00:54]} Kf8 {[%clk 00:01:02]} {[%emt 00:00:08]} 25. fxg6 {[%clk 00:36:06]}
{[%emt 00:00:37]} Qe7 {[%clk 00:00:31]} {[%emt 00:01:01]} 26. Bh6+ {[%clk
00:36:18]} {[%emt 00:00:18]} 1-0

[Event "Ebbe Cup 48"]
[Site "Goteborgs Schackcentrum, Vegatan 20, Gothenburg, Sweden"]
[Date "2025.02.15"]
[Round "3.3"]
[White "Havner, Arvid"]
[Black "Madevan Vaishnavi, Yaashvan"]
[Result "0-1"]
[TimeControl "90 minutes + 30 seconds per move from move one"]
[WhiteFideId "1769308"]
[BlackFideId "1772180"]
[WhiteElo "1881"]
[BlackElo "1867"]

1. e4 {[%clk 01:29:31]} {[%emt 00:01:28]} c5 {[%clk 01:30:47]} {[%emt
00:00:14]} 2. c3 {[%clk 01:28:55]} {[%emt 00:01:05]} d5 {[%clk 01:30:42]}
{[%emt 00:00:36]} 3. exd5 {[%clk 01:29:19]} {[%emt 00:00:07]} Qxd5 {[%clk
01:31:06]} {[%emt 00:00:06]} 4. d4 {[%clk 01:29:45]} {[%emt 00:00:04]} g6
{[%clk 01:31:29]} {[%emt 00:00:06]} 5. Nf3 {[%clk 01:30:09]} {[%emt 00:00:05]}
Bg7 {[%clk 01:30:51]} {[%emt 00:01:09]} 6. Na3 {[%clk 01:30:33]} {[%emt
00:00:07]} cxd4 {[%clk 01:29:03]} {[%emt 00:02:18]} 7. Bc4 {[%clk 01:30:47]}
{[%emt 00:00:11]} Qe4+ {[%clk 01:28:13]} {[%emt 00:01:24]} 8. Be3 {[%clk
01:31:10]} {[%emt 00:00:07]} Nh6 {[%clk 01:24:04]} {[%emt 00:04:39]} 9. cxd4
{[%clk 01:31:22]} {[%emt 00:00:18]} O-O {[%clk 01:22:42]} {[%emt 00:01:52]} 10.
Nb5 {[%clk 01:31:43]} {[%emt 00:00:09]} Na6 {[%clk 01:20:53]} {[%emt 00:02:18]}
11. Nc3 {[%clk 01:30:44]} {[%emt 00:01:29]} Qc6 {[%clk 01:20:09]} {[%emt
00:01:13]} 12. Bb3 {[%clk 01:28:20]} {[%emt 00:02:56]} Bg4 {[%clk 01:14:37]}
{[%emt 00:06:00]} 13. Nd5 {[%clk 01:23:43]} {[%emt 00:05:09]} Qd7 {[%clk
01:09:13]} {[%emt 00:05:54]} 14. O-O {[%clk 01:22:44]} {[%emt 00:01:29]} Nf5
{[%clk 01:06:56]} {[%emt 00:02:45]} 15. Re1 {[%clk 00:49:23]} {[%emt 00:33:52]}
e6 {[%clk 01:00:27]} {[%emt 00:06:59]} 16. Nc3 {[%clk 00:49:05]} {[%emt
00:00:49]} Nxd4 {[%clk 00:55:05]} {[%emt 00:05:52]} 17. Bxd4 {[%clk 00:49:19]}
{[%emt 00:00:16]} Bxf3 {[%clk 00:55:27]} {[%emt 00:00:07]} 18. Qxf3 {[%clk
00:48:42]} {[%emt 00:01:08]} Qxd4 {[%clk 00:55:40]} {[%emt 00:00:17]} 19. Qxb7
{[%clk 00:45:49]} {[%emt 00:03:22]} Nc5 {[%clk 00:55:07]} {[%emt 00:01:04]} 20.
Qf3 {[%clk 00:44:11]} {[%emt 00:02:07]} Nxb3 {[%clk 00:54:34]} {[%emt
00:01:03]} 21. axb3 {[%clk 00:44:35]} {[%emt 00:00:07]} Rab8 {[%clk 00:52:50]}
{[%emt 00:02:13]} 22. Red1 {[%clk 00:41:47]} {[%emt 00:03:19]} Qb6 {[%clk
00:51:37]} {[%emt 00:01:42]} 23. Rd7 {[%clk 00:34:14]} {[%emt 00:08:03]} a5
{[%clk 00:44:37]} {[%emt 00:07:30]} 24. g3 {[%clk 00:30:12]} {[%emt 00:04:33]}
Qxb3 {[%clk 00:42:49]} {[%emt 00:02:18]} 25. Rxa5 {[%clk 00:30:27]} {[%emt
00:00:14]} Qxb2 {[%clk 00:43:07]} {[%emt 00:00:13]} 26. Ne4 {[%clk 00:30:38]}
{[%emt 00:00:19]} Rb3 {[%clk 00:37:42]} {[%emt 00:05:55]} 27. Qf4 {[%clk
00:29:11]} {[%emt 00:01:56]} Rb4 {[%clk 00:36:37]} {[%emt 00:01:36]} 28. Kg2
{[%clk 00:24:57]} {[%emt 00:04:44]} Qc2 {[%clk 00:23:45]} {[%emt 00:13:19]} 29.
Kf3 {[%clk 00:19:17]} {[%emt 00:06:12]} Kh8 {[%clk 00:09:49]} {[%emt 00:14:26]}
30. Rd2 {[%clk 00:12:37]} {[%emt 00:07:11]} Qb1 {[%clk 00:08:21]} {[%emt
00:01:57]} 31. Re5 {[%clk 00:03:54]} {[%emt 00:09:14]} f5 {[%clk 00:07:02]}
{[%emt 00:01:49]} 32. Kg2 {[%clk 00:03:33]} {[%emt 00:00:50]} Rxe4 {[%clk
00:06:06]} {[%emt 00:01:26]} 33. Rxe4 {[%clk 00:03:26]} {[%emt 00:00:37]} Qxe4+
{[%clk 00:06:14]} {[%emt 00:00:23]} 34. Qxe4 {[%clk 00:03:49]} {[%emt
00:00:06]} fxe4 {[%clk 00:06:37]} {[%emt 00:00:08]} 35. Re2 {[%clk 00:04:10]}
{[%emt 00:00:08]} Bd4 {[%clk 00:06:57]} {[%emt 00:00:10]} 36. Rxe4 {[%clk
00:04:29]} {[%emt 00:00:11]} Rxf2+ {[%clk 00:07:22]} {[%emt 00:00:06]} 37. Kh3
{[%clk 00:04:48]} {[%emt 00:00:11]} e5 {[%clk 00:07:39]} {[%emt 00:00:14]} 0-1

[Event "Ebbe Cup 48"]
[Site "Goteborgs Schackcentrum, Vegatan 20, Gothenburg, Sweden"]
[Date "2025.02.15"]
[Round "3.4"]
[White "Munuswamy, Shivakumar"]
[Black "Gustavsson, Ville"]
[Result "1-0"]
[TimeControl "90 minutes + 30 seconds per move from move one"]
[WhiteFideId "1788914"]
[BlackFideId "1792822"]
[WhiteElo "1586"]
[BlackElo "1884"]

1. e4 {[%clk 01:29:48]} {[%emt 00:01:10]} c6 {[%clk 01:29:22]} {[%emt
00:01:40]} 2. d4 {[%clk 01:30:05]} {[%emt 00:00:12]} d5 {[%clk 01:29:31]}
{[%emt 00:00:21]} 3. e5 {[%clk 01:30:16]} {[%emt 00:00:19]} c5 {[%clk
01:29:53]} {[%emt 00:00:08]} 4. dxc5 {[%clk 01:30:25]} {[%emt 00:00:21]} Nc6
{[%clk 01:30:10]} {[%emt 00:00:14]} 5. f4 {[%clk 01:30:17]} {[%emt 00:00:37]}
e6 {[%clk 01:29:38]} {[%emt 00:01:02]} 6. Be3 {[%clk 01:29:45]} {[%emt
00:01:03]} Nge7 {[%clk 01:28:18]} {[%emt 00:01:50]} 7. Nd2 {[%clk 01:28:07]}
{[%emt 00:02:07]} Ng6 {[%clk 01:26:13]} {[%emt 00:02:35]} 8. Ngf3 {[%clk
01:26:18]} {[%emt 00:02:19]} d4 {[%clk 01:25:22]} {[%emt 00:01:22]} 9. Bf2
{[%clk 01:22:09]} {[%emt 00:04:38]} Bxc5 {[%clk 01:16:16]} {[%emt 00:09:36]} 10.
g3 {[%clk 01:17:23]} {[%emt 00:05:16]} O-O {[%clk 01:10:03]} {[%emt 00:06:43]}
11. a3 {[%clk 01:17:11]} {[%emt 00:00:42]} b6 {[%clk 01:02:41]} {[%emt
00:07:53]} 12. Nb3 {[%clk 01:15:33]} {[%emt 00:02:07]} Bb7 {[%clk 01:02:09]}
{[%emt 00:01:03]} 13. Bg2 {[%clk 01:09:29]} {[%emt 00:06:33]} f6 {[%clk
00:57:51]} {[%emt 00:04:48]} 14. exf6 {[%clk 01:02:16]} {[%emt 00:07:43]} Qxf6
{[%clk 00:56:57]} {[%emt 00:01:25]} 15. O-O {[%clk 00:55:56]} {[%emt 00:06:49]}
Rad8 {[%clk 00:47:58]} {[%emt 00:09:30]} 16. h4 {[%clk 00:55:57]} {[%emt
00:00:28]} Ba6 {[%clk 00:45:35]} {[%emt 00:02:52]} 17. Re1 {[%clk 00:49:48]} e5
{[%clk 00:45:38]} {[%emt 00:07:08]} 18. h5 {[%clk 00:43:21]} {[%emt 00:06:56]}
Nxf4 {[%clk 00:44:05]} {[%emt 00:02:03]} 19. gxf4 {[%clk 00:39:58]} {[%emt
00:03:53]} Qxf4 {[%clk 00:41:37]} {[%emt 00:02:58]} 20. Nbd2 {[%clk 00:37:44]}
{[%emt 00:02:44]} Rde8 {[%clk 00:35:56]} {[%emt 00:06:11]} 21. Ne4 {[%clk
00:35:42]} {[%emt 00:02:32]} d3 {[%clk 00:31:32]} {[%emt 00:04:54]} 22. Bxc5
{[%clk 00:29:02]} {[%emt 00:07:09]} bxc5 {[%clk 00:31:23]} {[%emt 00:00:40]} 23.
cxd3 {[%clk 00:27:45]} {[%emt 00:01:46]} Nd4 {[%clk 00:29:53]} {[%emt
00:02:01]} 24. Nxd4 {[%clk 00:27:16]} {[%emt 00:00:59]} cxd4 {[%clk 00:30:15]}
{[%emt 00:00:09]} 25. Rc1 {[%clk 00:25:45]} {[%emt 00:02:00]} Rf5 {[%clk
00:29:45]} {[%emt 00:01:00]} 26. Rc2 {[%clk 00:24:07]} {[%emt 00:02:08]} Qh4
{[%clk 00:29:07]} {[%emt 00:01:08]} 27. Rf2 {[%clk 00:13:38]} {[%emt 00:10:59]}
Rxh5 {[%clk 00:28:47]} {[%emt 00:00:51]} 28. Nd6 {[%clk 00:11:49]} {[%emt
00:02:19]} Re6 {[%clk 00:27:48]} {[%emt 00:01:28]} 29. Qf3 {[%clk 00:10:37]}
{[%emt 00:01:41]} Qh2+ {[%clk 00:13:01]} {[%emt 00:15:18]} 30. Kf1 {[%clk
00:10:46]} {[%emt 00:00:21]} Bxd3+ {[%clk 00:13:15]} {[%emt 00:00:17]} 31. Qxd3
{[%clk 00:10:52]} {[%emt 00:00:23]} Rxd6 {[%clk 00:13:43]} {[%emt 00:00:02]} 32.
Qc4+ {[%clk 00:11:05]} {[%emt 00:00:16]} Kh8 {[%clk 00:13:57]} {[%emt
00:00:17]} 33. Rf8# {[%clk 00:11:27]} {[%emt 00:00:08]} 1-0

[Event "Ebbe Cup 48"]
[Site "Goteborgs Schackcentrum, Vegatan 20, Gothenburg, Sweden"]
[Date "2025.02.15"]
[Round "3.5"]
[White "Brodocz, Bartosz"]
[Black "Evertsson, David"]
[Result "1-0"]
[TimeControl "90 minutes + 30 seconds per move from move one"]
[WhiteFideId "21025894"]
[BlackFideId "1777424"]
[WhiteElo "1821"]
[BlackElo "1710"]

1. e4 {[%clk 01:30:37]} {[%emt 00:00:22]} c5 {[%clk 01:30:56]} {[%emt
00:00:05]} 2. c3 {[%clk 01:31:03]} {[%emt 00:00:04]} Nf6 {[%clk 01:31:21]}
{[%emt 00:00:04]} 3. e5 {[%clk 01:31:24]} {[%emt 00:00:09]} Nd5 {[%clk
01:31:46]} {[%emt 00:00:05]} 4. Bc4 {[%clk 01:31:45]} {[%emt 00:00:09]} Nb6
{[%clk 01:32:01]} {[%emt 00:00:14]} 5. Bb3 {[%clk 01:32:11]} {[%emt 00:00:05]}
d5 {[%clk 01:32:06]} {[%emt 00:00:25]} 6. d4 {[%clk 01:32:12]} {[%emt
00:00:29]} Bf5 {[%clk 01:30:54]} {[%emt 00:01:42]} 7. dxc5 {[%clk 01:31:50]}
{[%emt 00:00:52]} Nc4 {[%clk 01:19:44]} {[%emt 00:11:38]} 8. Bxc4 {[%clk
01:32:08]} {[%emt 00:00:14]} dxc4 {[%clk 01:20:11]} {[%emt 00:00:04]} 9. Qxd8+
{[%clk 01:32:22]} {[%emt 00:00:16]} Kxd8 {[%clk 01:20:38]} {[%emt 00:00:03]} 10.
Na3 {[%clk 01:31:53]} {[%emt 00:00:59]} Bd3 {[%clk 01:17:57]} {[%emt 00:03:10]}
11. Be3 {[%clk 01:32:07]} {[%emt 00:00:17]} Nc6 {[%clk 01:13:55]} {[%emt
00:04:32]} 12. O-O-O {[%clk 01:31:40]} {[%emt 00:00:57]} Ke8 {[%clk 01:11:42]}
{[%emt 00:02:42]} 13. f4 {[%clk 01:29:16]} {[%emt 00:02:54]} g6 {[%clk
01:07:03]} {[%emt 00:05:09]} 14. Nf3 {[%clk 01:29:06]} {[%emt 00:00:40]} Bg7
{[%clk 01:06:57]} {[%emt 00:00:37]} 15. Ne1 {[%clk 01:28:28]} {[%emt 00:01:08]}
Be4 {[%clk 00:59:54]} {[%emt 00:07:34]} 16. Nxc4 {[%clk 01:28:24]} {[%emt
00:00:33]} f6 {[%clk 00:59:59]} {[%emt 00:00:25]} 17. exf6 {[%clk 01:28:15]}
{[%emt 00:00:40]} Bxf6 {[%clk 01:00:18]} {[%emt 00:00:10]} 18. Nd2 {[%clk
01:24:01]} {[%emt 00:04:44]} Bf5 {[%clk 00:54:33]} {[%emt 00:06:15]} 19. Nef3
{[%clk 01:22:21]} {[%emt 00:02:08]} Kf7 {[%clk 00:51:48]} {[%emt 00:03:15]} 20.
Nb3 {[%clk 01:19:35]} {[%emt 00:03:18]} Rad8 {[%clk 00:47:56]} {[%emt
00:04:22]} 21. Nbd4 {[%clk 01:19:15]} {[%emt 00:00:50]} Be4 {[%emt 00:01:55]}
22. Rhf1 {[%clk 01:18:16]} Kg7 {[%clk 00:43:29]} {[%emt 00:04:59]} 23. Ne6+
{[%clk 01:18:16]} {[%emt 00:00:30]} Kf7 {[%clk 00:41:37]} {[%emt 00:02:22]} 24.
Nxd8+ {[%clk 01:18:33]} {[%emt 00:00:14]} Nxd8 {[%clk 00:41:43]} {[%emt
00:00:23]} 25. Ng5+ {[%clk 01:18:47]} {[%emt 00:00:16]} Bxg5 {[%clk 00:41:56]}
{[%emt 00:00:18]} 26. fxg5+ {[%clk 01:19:12]} {[%emt 00:00:05]} Ke6 {[%clk
00:41:16]} {[%emt 00:01:09]} 27. Bd4 {[%clk 01:19:19]} {[%emt 00:00:24]} Re8
{[%clk 00:40:40]} {[%emt 00:01:06]} 28. Rfe1 {[%clk 01:16:46]} {[%emt
00:03:04]} Kf5 {[%clk 00:39:17]} {[%emt 00:01:53]} 29. g4+ {[%clk 01:17:05]}
{[%emt 00:00:09]} Kf4 {[%clk 00:39:43]} {[%emt 00:00:05]} 30. Rg1 {[%clk
01:15:41]} {[%emt 00:01:53]} e5 {[%clk 00:39:15]} {[%emt 00:00:59]} 31. Rdf1+
{[%clk 01:15:42]} {[%emt 00:00:29]} Kxg5 {[%clk 00:39:33]} {[%emt 00:00:11]} 32.
Be3+ {[%clk 01:15:24]} {[%emt 00:00:49]} Kh4 {[%clk 00:39:26]} {[%emt
00:00:37]} 33. Bd2 {[%clk 01:13:10]} {[%emt 00:02:45]} Ne6 {[%clk 00:33:39]}
{[%emt 00:06:17]} 34. Rf7 {[%clk 01:11:34]} {[%emt 00:02:04]} h5 {[%clk
00:31:35]} {[%emt 00:02:36]} 35. gxh5 {[%clk 01:11:49]} {[%emt 00:00:15]} gxh5
{[%clk 00:31:43]} {[%emt 00:00:20]} 36. Rg3 {[%clk 01:11:21]} {[%emt 00:00:57]}
Rd8 {[%clk 00:22:34]} {[%emt 00:09:42]} 37. Rf6 {[%clk 01:11:23]} {[%emt
00:00:28]} Rxd2 {[%clk 00:21:50]} {[%emt 00:01:14]} 38. Kxd2 {[%clk 01:11:43]}
{[%emt 00:00:09]} Nxc5 {[%clk 00:21:47]} {[%emt 00:00:33]} 39. b4 {[%clk
01:11:13]} {[%emt 00:01:01]} Nd7 {[%clk 00:21:19]} {[%emt 00:00:58]} 40. Re6
{[%clk 01:10:29]} {[%emt 00:01:11]} Nb6 {[%clk 00:19:45]} {[%emt 00:02:07]} 41.
Ke3 {[%clk 01:02:54]} {[%emt 00:08:04]} Bd5 {[%clk 00:16:58]} {[%emt 00:03:18]}
42. Rh6 {[%clk 01:02:58]} {[%emt 00:00:24]} Bxa2 {[%clk 00:10:47]} {[%emt
00:06:43]} 43. Rxb6 {[%clk 01:03:06]} {[%emt 00:00:22]} axb6 {[%clk 00:10:40]}
{[%emt 00:00:37]} 44. Ke4 {[%clk 01:03:28]} {[%emt 00:00:07]} b5 {[%clk
00:10:40]} {[%emt 00:00:31]} 45. Kxe5 {[%clk 01:03:44]} {[%emt 00:00:14]} b6
{[%clk 00:10:20]} {[%emt 00:00:51]} 46. Kd6 {[%clk 01:04:00]} {[%emt 00:00:13]}
Bd5 {[%clk 00:09:53]} {[%emt 00:00:57]} 47. Kc7 {[%clk 01:03:57]} {[%emt
00:00:32]} Bc4 {[%clk 00:09:12]} {[%emt 00:01:12]} 48. Kxb6 {[%clk 01:04:18]}
{[%emt 00:00:10]} Bf1 {[%clk 00:09:27]} {[%emt 00:00:15]} 49. Rf3 {[%clk
01:03:34]} {[%emt 00:01:02]} Bc4 {[%clk 00:09:15]} {[%emt 00:00:54]} 50. Rf4+
{[%clk 01:02:53]} {[%emt 00:01:11]} Kh3 {[%clk 00:09:26]} {[%emt 00:00:18]} 51.
Rxc4 {[%clk 01:02:47]} {[%emt 00:00:36]} bxc4 {[%clk 00:09:38]} {[%emt
00:00:18]} 52. Kc5 {[%clk 01:03:09]} {[%emt 00:00:08]} Kxh2 {[%clk 00:09:56]}
{[%emt 00:00:12]} 53. b5 {[%clk 01:03:33]} {[%emt 00:00:06]} h4 {[%clk
00:10:06]} {[%emt 00:00:19]} 54. b6 {[%clk 01:03:59]} {[%emt 00:00:06]} h3
{[%clk 00:10:22]} {[%emt 00:00:13]} 55. b7 {[%clk 01:04:23]} {[%emt 00:00:06]}
Kg1 {[%clk 00:10:34]} {[%emt 00:00:18]} 56. b8=Q {[%clk 01:04:41]} {[%emt
00:00:10]} h2 {[%clk 00:10:58]} {[%emt 00:00:06]} 57. Qxh2+ {[%clk 01:04:43]}
{[%emt 00:00:30]} Kxh2 {[%clk 00:11:15]} {[%emt 00:00:06]} 58. Kxc4 {[%clk
01:05:08]} {[%emt 00:00:12]} Kg3 {[%clk 00:11:39]} {[%emt 00:00:06]} 59. Kd5
{[%clk 01:05:29]} {[%emt 00:00:09]} Kf4 {[%clk 00:12:01]} {[%emt 00:00:07]} 60.
c4 {[%clk 01:05:52]} {[%emt 00:00:09]} Kf5 {[%clk 00:12:23]} {[%emt 00:00:06]}
61. c5 {[%clk 01:06:13]} {[%emt 00:00:10]} Kf6 {[%clk 00:12:44]} {[%emt
00:00:09]} 62. Kd6 {[%clk 01:06:35]} {[%emt 00:00:08]} Kf7 {[%clk 00:13:05]}
{[%emt 00:00:08]} 63. Kd7 {[%clk 01:06:52]} {[%emt 00:00:14]} 1-0